[Event "Titled Tuesday Blitz July 25 Early 2023"]
[White "Vivas Zamora, Fabian Ernesto"]
[Black "Torres Hernandez, Leslie Carolin"]
[WhiteFideId "3902480"]
[BlackFideId "8400504"]
[WhiteElo "2442"]
[BlackElo "2271"]
[Result "0-1"]
[Round "8"]
[TimeControl "180+2"]
[Date "2023.07.25"]
[WhiteClock "0:00:01"]
[BlackClock "0:00:35"]
[Board "146"]

1. e4 {[%clk 0:03:00]}  c5 {[%clk 0:02:57]} 2. Nf3 {[%clk 0:02:57]}  d6 {[%clk 0:02:56]} 3. d4 {[%clk 0:02:57]}  cxd4 {[%clk 0:02:57]} 4. Nxd4 {[%clk 0:02:58]}  Nf6 {[%clk 0:02:57]} 5. Nc3 {[%clk 0:02:59]}  a6 {[%clk 0:02:57]} 6. h3 {[%clk 0:02:57]}  e5 {[%clk 0:02:55]} 7. Nb3 {[%clk 0:02:52]}  h5 {[%clk 0:02:51]} 8. Bg5 {[%clk 0:02:45]}  Be7 {[%clk 0:02:49]} 9. Qf3 {[%clk 0:02:40]}  Nc6 {[%clk 0:02:39]} 10. O-O-O {[%clk 0:02:33]}  Be6 {[%clk 0:02:32]} 11. Kb1 {[%clk 0:02:14]}  Qc7 {[%clk 0:02:19]} 12. Bxf6 {[%clk 0:02:07]}  Bxf6 {[%clk 0:02:18]} 13. Nd5 {[%clk 0:02:03]}  Bxd5 {[%clk 0:02:18]} 14. exd5 {[%clk 0:01:54]}  Nb8 {[%clk 0:02:14]} 15. c4 {[%clk 0:01:52]}  Nd7 {[%clk 0:02:14]} 16. Bd3 {[%clk 0:01:32]}  O-O-O {[%clk 0:01:56]} 17. Bf5 {[%clk 0:01:19]}  Kb8 {[%clk 0:01:53]} 18. Bxd7 {[%clk 0:01:14]}  Rxd7 {[%clk 0:01:54]} 19. Qe4 {[%clk 0:01:05]}  Qb6 {[%clk 0:01:50]} 20. f3 {[%clk 0:00:58]}  Rc8 {[%clk 0:01:47]} 21. Rc1 {[%clk 0:00:46]}  Bg5 {[%clk 0:01:44]} 22. Rc2 {[%clk 0:00:43]}  g6 {[%clk 0:01:41]} 23. c5 {[%clk 0:00:33]}  Qb5 {[%clk 0:01:34]} 24. Rd1 {[%clk 0:00:06]}  f5 {[%clk 0:01:33]} 25. Qe1 {[%clk 0:00:03]}  Bf6 {[%clk 0:01:23]} 26. Rdc1 {[%clk 0:00:01]}  Bg5 {[%clk 0:01:14]} 27. Rd1 {[%clk 0:00:01]}  Bf6 {[%clk 0:01:14]} 28. Rdc1 {[%clk 0:00:02]}  Qd3 {[%clk 0:00:57]} 29. cxd6 {[%clk 0:00:02]}  Rxc2 {[%clk 0:00:53]} 30. Rxc2 {[%clk 0:00:02]}  Rxd6 {[%clk 0:00:51]} 31. Qb4 {[%clk 0:00:02]}  Qxd5 {[%clk 0:00:48]} 32. a3 {[%clk 0:00:01]}  Be7 {[%clk 0:00:42]} 33. Rd2 {[%clk 0:00:01]}  Qc6 {[%clk 0:00:39]} 34. Nc5 {[%clk 0:00:02]}  Rxd2 {[%clk 0:00:35]} 35. Qxd2 {[%clk 0:00:01]}  Bxc5 {[%clk 0:00:35]} 0-1


[Site "https://www.chess.com"]

[Event "Titled Tuesday Blitz July 25 Early 2023"]
[White "Vemparala, Nikash"]
[Black "Avazkhonov, Alikhon"]
[WhiteFideId "30960967"]
[BlackFideId "14208504"]
[WhiteElo "2270"]
[BlackElo "2440"]
[Result "1-0"]
[Round "8"]
[TimeControl "180+2"]
[Date "2023.07.25"]
[WhiteClock "0:00:09"]
[BlackClock "0:00:00"]
[Board "147"]

1. e4 {[%clk 0:03:00]}  c5 {[%clk 0:02:58]} 2. Nf3 {[%clk 0:03:00]}  d6 {[%clk 0:02:58]} 3. d4 {[%clk 0:03:00]}  cxd4 {[%clk 0:02:59]} 4. Nxd4 {[%clk 0:03:00]}  Nf6 {[%clk 0:02:59]} 5. Nc3 {[%clk 0:03:00]}  a6 {[%clk 0:02:59]} 6. f3 {[%clk 0:03:00]}  e5 {[%clk 0:02:59]} 7. Nb3 {[%clk 0:03:00]}  h5 {[%clk 0:03:00]} 8. Be3 {[%clk 0:02:55]}  Be6 {[%clk 0:03:00]} 9. Nd5 {[%clk 0:02:54]}  Bxd5 {[%clk 0:03:00]} 10. exd5 {[%clk 0:02:54]}  Nbd7 {[%clk 0:03:01]} 11. Qd2 {[%clk 0:02:51]}  b5 {[%clk 0:03:00]} 12. a4 {[%clk 0:02:48]}  bxa4 {[%clk 0:02:57]} 13. Rxa4 {[%clk 0:02:48]}  Nb6 {[%clk 0:02:58]} 14. Rxa6 {[%clk 0:02:47]}  Rxa6 {[%clk 0:02:58]} 15. Bxa6 {[%clk 0:02:46]}  Nbxd5 {[%clk 0:02:59]} 16. Bb5+ {[%clk 0:02:45]}  Ke7 {[%clk 0:03:00]} 17. Na5 {[%clk 0:02:41]}  Qc7 {[%clk 0:02:51]} 18. Nc6+ {[%clk 0:02:39]}  Ke6 {[%clk 0:02:50]} 19. Bf2 {[%clk 0:02:20]}  g6 {[%clk 0:02:45]} 20. c4 {[%clk 0:02:14]}  Nf4 {[%clk 0:02:41]} 21. g3 {[%clk 0:02:07]}  Nh3 {[%clk 0:02:15]} 22. Be3 {[%clk 0:01:48]}  g5 {[%clk 0:01:31]} 23. c5 {[%clk 0:01:43]}  d5 {[%clk 0:01:23]} 24. Rf1 {[%clk 0:01:14]}  Bh6 {[%clk 0:00:52]} 25. b4 {[%clk 0:00:36]}  Qb7 {[%clk 0:00:38]} 26. Ba4 {[%clk 0:00:29]}  Ra8 {[%clk 0:00:26]} 27. Na5 {[%clk 0:00:18]}  Rxa5 {[%clk 0:00:25]} 28. bxa5 {[%clk 0:00:15]}  d4 {[%clk 0:00:26]} 29. Qa2+ {[%clk 0:00:15]}  Nd5 {[%clk 0:00:25]} 30. Bb3 {[%clk 0:00:14]}  Qb4+ {[%clk 0:00:21]} 31. Bd2 {[%clk 0:00:14]}  Qxc5 {[%clk 0:00:19]} 32. Bxd5+ {[%clk 0:00:13]}  Qxd5 {[%clk 0:00:20]} 33. Qxd5+ {[%clk 0:00:12]}  Kxd5 {[%clk 0:00:21]} 34. Ke2 {[%clk 0:00:10]}  Bf8 {[%clk 0:00:18]} 35. a6 {[%clk 0:00:10]}  Bc5 {[%clk 0:00:18]} 36. Rb1 {[%clk 0:00:10]}  g4 {[%clk 0:00:07]} 37. fxg4 {[%clk 0:00:09]}  hxg4 {[%clk 0:00:06]} 38. Rb7 {[%clk 0:00:09]}  e4 {[%clk 0:00:05]} 39. Rb5 {[%clk 0:00:08]}  Kc6 {[%clk 0:00:02]} 40. Rxc5+ {[%clk 0:00:08]}  Kxc5 {[%clk 0:00:03]} 41. a7 {[%clk 0:00:08]}  Ng1+ {[%clk 0:00:01]} 42. Kf1 {[%clk 0:00:09]}  Nf3 {[%clk 0:00:01]} 43. a8=Q {[%clk 0:00:09]}  Nxd2+ {[%clk 0:00:01]} 44. Ke2 {[%clk 0:00:09]}  Nf3 {[%clk 0:00:00]} 45. Qxe4 {[%clk 0:00:09]} 1-0


[Site "https://www.chess.com"]

[Event "Titled Tuesday Blitz July 25 Early 2023"]
[White "Andrews, Todd"]
[Black "Terletsky, Oleg"]
[WhiteFideId "2012456"]
[BlackFideId "14116774"]
[WhiteElo "2350"]
[BlackElo "2505"]
[Result "0-1"]
[Round "8"]
[TimeControl "180+2"]
[Date "2023.07.25"]
[WhiteClock "0:00:11"]
[BlackClock "0:00:09"]
[Board "152"]

1. e4 {[%clk 0:02:33]}  e5 {[%clk 0:02:59]} 2. Nf3 {[%clk 0:02:33]}  Nc6 {[%clk 0:02:59]} 3. Nc3 {[%clk 0:02:32]}  Nf6 {[%clk 0:02:59]} 4. Bb5 {[%clk 0:02:33]}  Bb4 {[%clk 0:02:59]} 5. d3 {[%clk 0:02:33]}  Nd4 {[%clk 0:02:58]} 6. Bc4 {[%clk 0:02:32]}  d6 {[%clk 0:02:58]} 7. O-O {[%clk 0:02:32]}  Bg4 {[%clk 0:02:57]} 8. Kh1 {[%clk 0:02:26]}  Nh5 {[%clk 0:02:39]} 9. Be3 {[%clk 0:02:21]}  Bxf3 {[%clk 0:02:29]} 10. gxf3 {[%clk 0:02:21]}  Qh4 {[%clk 0:02:15]} 11. Bxd4 {[%clk 0:02:18]}  exd4 {[%clk 0:02:14]} 12. Nd5 {[%clk 0:02:19]}  Ba5 {[%clk 0:02:11]} 13. b4 {[%clk 0:02:04]}  Bb6 {[%clk 0:02:10]} 14. Rg1 {[%clk 0:02:01]}  Qxf2 {[%clk 0:01:37]} 15. Rg5 {[%clk 0:01:48]}  g6 {[%clk 0:01:25]} 16. Qf1 {[%clk 0:01:28]}  Qxf1+ {[%clk 0:01:22]} 17. Rxf1 {[%clk 0:01:29]}  c6 {[%clk 0:01:16]} 18. Nxb6 {[%clk 0:01:28]}  axb6 {[%clk 0:01:17]} 19. f4 {[%clk 0:01:27]}  f6 {[%clk 0:00:48]} 20. Rg2 {[%clk 0:01:25]}  Ra4 {[%clk 0:00:46]} 21. f5 {[%clk 0:01:12]}  g5 {[%clk 0:00:44]} 22. Rb1 {[%clk 0:01:04]}  Nf4 {[%clk 0:00:41]} 23. Rf2 {[%clk 0:01:04]}  Ke7 {[%clk 0:00:33]} 24. Rd2 {[%clk 0:00:49]}  Rha8 {[%clk 0:00:32]} 25. Kg1 {[%clk 0:00:46]}  b5 {[%clk 0:00:27]} 26. Bb3 {[%clk 0:00:42]}  Rxb4 {[%clk 0:00:27]} 27. Kf2 {[%clk 0:00:38]}  c5 {[%clk 0:00:24]} 28. Kf3 {[%clk 0:00:38]}  Ra3 {[%clk 0:00:20]} 29. h4 {[%clk 0:00:28]}  h5 {[%clk 0:00:16]} 30. hxg5 {[%clk 0:00:27]}  fxg5 {[%clk 0:00:17]} 31. Rg1 {[%clk 0:00:27]}  Kf6 {[%clk 0:00:17]} 32. e5+ {[%clk 0:00:22]}  dxe5 {[%clk 0:00:17]} 33. Ke4 {[%clk 0:00:22]}  c4 {[%clk 0:00:16]} 34. dxc4 {[%clk 0:00:21]}  bxc4 {[%clk 0:00:17]} 35. c3 {[%clk 0:00:18]}  cxb3 {[%clk 0:00:09]} 36. cxb4 {[%clk 0:00:18]}  bxa2 {[%clk 0:00:09]} 37. Re1 {[%clk 0:00:11]}  a1=Q {[%clk 0:00:09]} 38. Rxa1 {[%clk 0:00:11]}  Re3# {[%clk 0:00:09]} 0-1


[Site "https://www.chess.com"]

[Event "Titled Tuesday Blitz July 25 Early 2023"]
[White "To, Nhat Minh"]
[Black "Wernberg, Hugo"]
[WhiteFideId "729019"]
[BlackFideId "1737511"]
[WhiteElo "2498"]
[BlackElo "2347"]
[Result "1-0"]
[Round "8"]
[TimeControl "180+2"]
[Date "2023.07.25"]
[WhiteClock "0:01:02"]
[BlackClock "0:00:00"]
[Board "153"]

1. e4 {[%clk 0:02:56]}  e5 {[%clk 0:03:00]} 2. Nf3 {[%clk 0:02:56]}  Nc6 {[%clk 0:03:00]} 3. Bb5 {[%clk 0:02:56]}  a6 {[%clk 0:03:01]} 4. Ba4 {[%clk 0:02:57]}  Nf6 {[%clk 0:03:01]} 5. O-O {[%clk 0:02:57]}  Nxe4 {[%clk 0:03:01]} 6. d4 {[%clk 0:02:57]}  b5 {[%clk 0:03:01]} 7. Bb3 {[%clk 0:02:58]}  d5 {[%clk 0:03:02]} 8. dxe5 {[%clk 0:02:57]}  Be6 {[%clk 0:03:02]} 9. Nbd2 {[%clk 0:02:57]}  Be7 {[%clk 0:03:01]} 10. c3 {[%clk 0:02:57]}  O-O {[%clk 0:03:02]} 11. Bc2 {[%clk 0:02:54]}  f5 {[%clk 0:03:02]} 12. Nb3 {[%clk 0:02:49]}  Qd7 {[%clk 0:03:01]} 13. Nbd4 {[%clk 0:02:47]}  Nxd4 {[%clk 0:03:00]} 14. Nxd4 {[%clk 0:02:46]}  c5 {[%clk 0:03:00]} 15. Nxe6 {[%clk 0:02:47]}  Qxe6 {[%clk 0:03:01]} 16. f3 {[%clk 0:02:46]}  Ng5 {[%clk 0:03:01]} 17. Bxg5 {[%clk 0:02:45]}  Bxg5 {[%clk 0:03:01]} 18. f4 {[%clk 0:02:46]}  Be7 {[%clk 0:03:01]} 19. a4 {[%clk 0:02:47]}  Rad8 {[%clk 0:02:57]} 20. axb5 {[%clk 0:02:47]}  axb5 {[%clk 0:02:58]} 21. Qe2 {[%clk 0:02:40]}  c4 {[%clk 0:02:54]} 22. Kh1 {[%clk 0:02:37]}  d4 {[%clk 0:02:50]} 23. cxd4 {[%clk 0:02:36]}  Rxd4 {[%clk 0:02:51]} 24. Rad1 {[%clk 0:02:33]}  Rfd8 {[%clk 0:02:50]} 25. Rxd4 {[%clk 0:02:33]}  Rxd4 {[%clk 0:02:51]} 26. b3 {[%clk 0:02:30]}  cxb3 {[%clk 0:02:34]} 27. Qxb5 {[%clk 0:02:31]}  Kh8 {[%clk 0:01:10]} 28. Bxb3 {[%clk 0:02:22]}  Qg6 {[%clk 0:01:05]} 29. Qb7 {[%clk 0:02:11]}  Qe8 {[%clk 0:00:47]} 30. Rc1 {[%clk 0:02:07]}  h6 {[%clk 0:00:33]} 31. g3 {[%clk 0:02:03]}  Rd2 {[%clk 0:00:25]} 32. Rc8 {[%clk 0:02:01]}  Bd8 {[%clk 0:00:22]} 33. Qf7 {[%clk 0:01:43]}  Rd1+ {[%clk 0:00:15]} 34. Kg2 {[%clk 0:01:38]}  Rd2+ {[%clk 0:00:15]} 35. Kh3 {[%clk 0:01:36]}  Qxf7 {[%clk 0:00:12]} 36. Bxf7 {[%clk 0:01:37]}  Kh7 {[%clk 0:00:11]} 37. e6 {[%clk 0:01:37]}  Bf6 {[%clk 0:00:04]} 38. Bg8+ {[%clk 0:01:01]}  Kg6 {[%clk 0:00:00]} 39. Rc5 {[%clk 0:01:02]} 1-0


[Site "https://www.chess.com"]

[Event "Titled Tuesday Blitz July 25 Early 2023"]
[White "Alahakoon, Isuru"]
[Black "Shturman, Arseniy"]
[WhiteFideId "9900993"]
[BlackFideId "34275797"]
[WhiteElo "2345"]
[BlackElo "2489"]
[Result "0-1"]
[Round "8"]
[TimeControl "180+2"]
[Date "2023.07.25"]
[WhiteClock "0:00:00"]
[BlackClock "0:01:57"]
[Board "155"]

1. Nf3 {[%clk 0:03:00]}  g6 {[%clk 0:02:54]} 2. d4 {[%clk 0:03:00]}  Bg7 {[%clk 0:02:55]} 3. Bf4 {[%clk 0:02:58]}  d6 {[%clk 0:02:55]} 4. Nc3 {[%clk 0:02:57]}  Nd7 {[%clk 0:02:56]} 5. Qd2 {[%clk 0:02:56]}  a6 {[%clk 0:02:53]} 6. e4 {[%clk 0:02:54]}  b5 {[%clk 0:02:53]} 7. O-O-O {[%clk 0:02:53]}  Bb7 {[%clk 0:02:52]} 8. h4 {[%clk 0:02:51]}  b4 {[%clk 0:02:51]} 9. Nd5 {[%clk 0:02:50]}  a5 {[%clk 0:02:50]} 10. h5 {[%clk 0:02:49]}  e6 {[%clk 0:02:50]} 11. h6 {[%clk 0:02:46]}  Bf8 {[%clk 0:02:48]} 12. Ne3 {[%clk 0:02:31]}  Bxe4 {[%clk 0:02:47]} 13. Ng5 {[%clk 0:02:31]}  Bb7 {[%clk 0:02:46]} 14. Ng4 {[%clk 0:02:01]}  Ngf6 {[%clk 0:02:34]} 15. Nxf6+ {[%clk 0:01:58]}  Nxf6 {[%clk 0:02:33]} 16. Bb5+ {[%clk 0:01:54]}  c6 {[%clk 0:02:34]} 17. Bc4 {[%clk 0:01:45]}  Qd7 {[%clk 0:02:32]} 18. Rhe1 {[%clk 0:01:26]}  Nd5 {[%clk 0:02:31]} 19. Ne4 {[%clk 0:01:19]}  O-O-O {[%clk 0:02:24]} 20. a3 {[%clk 0:01:06]}  Nxf4 {[%clk 0:02:22]} 21. Qxf4 {[%clk 0:01:06]}  d5 {[%clk 0:02:22]} 22. Nf6 {[%clk 0:01:06]}  Qc7 {[%clk 0:02:21]} 23. Qxc7+ {[%clk 0:00:49]}  Kxc7 {[%clk 0:02:21]} 24. Bd3 {[%clk 0:00:42]}  Bxh6+ {[%clk 0:02:21]} 25. Kb1 {[%clk 0:00:41]}  bxa3 {[%clk 0:02:21]} 26. bxa3 {[%clk 0:00:42]}  Bg7 {[%clk 0:02:21]} 27. Ng4 {[%clk 0:00:29]}  Bxd4 {[%clk 0:02:12]} 28. Bxg6 {[%clk 0:00:27]}  Bxf2 {[%clk 0:02:12]} 29. Nxf2 {[%clk 0:00:20]}  hxg6 {[%clk 0:02:12]} 30. Nd3 {[%clk 0:00:21]}  Kd6 {[%clk 0:02:09]} 31. Rf1 {[%clk 0:00:20]}  f5 {[%clk 0:02:08]} 32. Nf4 {[%clk 0:00:21]}  g5 {[%clk 0:02:06]} 33. Nh3 {[%clk 0:00:19]}  g4 {[%clk 0:02:05]} 34. Nf4 {[%clk 0:00:18]}  Ba6 {[%clk 0:02:05]} 35. Rfe1 {[%clk 0:00:17]}  e5 {[%clk 0:02:05]} 36. Ng6 {[%clk 0:00:18]}  Rhe8 {[%clk 0:02:05]} 37. Rh1 {[%clk 0:00:16]}  Re6 {[%clk 0:02:05]} 38. Nh4 {[%clk 0:00:15]}  Rf6 {[%clk 0:02:04]} 39. c3 {[%clk 0:00:11]}  Bc4 {[%clk 0:02:03]} 40. Kc2 {[%clk 0:00:11]}  f4 {[%clk 0:02:02]} 41. Rb1 {[%clk 0:00:06]}  e4 {[%clk 0:02:02]} 42. Rb7 {[%clk 0:00:06]}  Rd7 {[%clk 0:01:59]} 43. Rb8 {[%clk 0:00:05]}  Bd3+ {[%clk 0:01:57]} 44. Kd2 {[%clk 0:00:05]}  Bc4 {[%clk 0:01:56]} 45. Rg8 {[%clk 0:00:04]}  e3+ {[%clk 0:01:56]} 46. Kc2 {[%clk 0:00:04]}  f3 {[%clk 0:01:56]} 47. Rxg4 {[%clk 0:00:03]}  f2 {[%clk 0:01:56]} 48. Nf3 {[%clk 0:00:00]}  e2 {[%clk 0:01:57]} 0-1


[Site "https://www.chess.com"]

[Event "Titled Tuesday Blitz July 25 Early 2023"]
[White "Tsyhanchuk, Stanislav"]
[Black "LangesNasenhaar"]
[WhiteFideId "13505130"]
[WhiteElo "2314"]
[BlackElo "2477"]
[Result "0-1"]
[Round "8"]
[TimeControl "180+2"]
[Date "2023.07.25"]
[WhiteClock "0:00:00"]
[BlackClock "0:00:04"]
[Board "157"]

1. c4 {[%clk 0:03:00]}  e6 {[%clk 0:02:57]} 2. Nc3 {[%clk 0:03:01]}  d5 {[%clk 0:02:58]} 3. cxd5 {[%clk 0:02:59]}  exd5 {[%clk 0:02:58]} 4. d4 {[%clk 0:03:00]}  c5 {[%clk 0:02:58]} 5. Nf3 {[%clk 0:02:58]}  Nc6 {[%clk 0:02:58]} 6. Bf4 {[%clk 0:02:49]}  a6 {[%clk 0:02:53]} 7. e3 {[%clk 0:02:47]}  c4 {[%clk 0:02:53]} 8. Ne5 {[%clk 0:02:42]}  Nf6 {[%clk 0:02:35]} 9. Be2 {[%clk 0:02:38]}  Bb4 {[%clk 0:02:31]} 10. O-O {[%clk 0:02:30]}  O-O {[%clk 0:02:31]} 11. Nxc6 {[%clk 0:02:28]}  bxc6 {[%clk 0:02:32]} 12. Qa4 {[%clk 0:02:28]}  Qa5 {[%clk 0:02:24]} 13. Qxc6 {[%clk 0:02:26]}  Bd7 {[%clk 0:02:08]} 14. Qc7 {[%clk 0:02:15]}  Bxc3 {[%clk 0:02:03]} 15. bxc3 {[%clk 0:02:16]}  Qxc3 {[%clk 0:02:00]} 16. Be5 {[%clk 0:02:15]}  Rac8 {[%clk 0:01:54]} 17. Qb7 {[%clk 0:02:03]}  Bc6 {[%clk 0:01:30]} 18. Qxa6 {[%clk 0:02:01]}  Ne4 {[%clk 0:01:30]} 19. Bf3 {[%clk 0:01:57]}  Nd2 {[%clk 0:01:26]} 20. Rfc1 {[%clk 0:01:51]}  Nxf3+ {[%clk 0:01:24]} 21. gxf3 {[%clk 0:01:52]}  Qd3 {[%clk 0:01:24]} 22. Kg2 {[%clk 0:01:36]}  Bd7 {[%clk 0:01:05]} 23. Rg1 {[%clk 0:01:27]}  Rc6 {[%clk 0:00:59]} 24. Qb7 {[%clk 0:01:22]}  Rg6+ {[%clk 0:00:40]} 25. Kh1 {[%clk 0:01:00]}  Be6 {[%clk 0:00:39]} 26. Rxg6 {[%clk 0:00:56]}  hxg6 {[%clk 0:00:40]} 27. Qb1 {[%clk 0:00:50]}  Qc3 {[%clk 0:00:33]} 28. Qc1 {[%clk 0:00:46]}  Qd3 {[%clk 0:00:29]} 29. a4 {[%clk 0:00:41]}  c3 {[%clk 0:00:27]} 30. Bd6 {[%clk 0:00:32]}  Ra8 {[%clk 0:00:24]} 31. a5 {[%clk 0:00:24]}  c2 {[%clk 0:00:22]} 32. Bb4 {[%clk 0:00:24]}  Qe2 {[%clk 0:00:20]} 33. Kg2 {[%clk 0:00:21]}  Ra6 {[%clk 0:00:12]} 34. Ra2 {[%clk 0:00:09]}  Bh3+ {[%clk 0:00:12]} 35. Kg3 {[%clk 0:00:09]}  Bf5 {[%clk 0:00:10]} 36. e4 {[%clk 0:00:08]}  dxe4 {[%clk 0:00:09]} 37. fxe4 {[%clk 0:00:06]}  Qxe4 {[%clk 0:00:07]} 38. f3 {[%clk 0:00:04]}  Qe2 {[%clk 0:00:06]} 39. Rb2 {[%clk 0:00:03]}  Rf6 {[%clk 0:00:05]} 40. Bd2 {[%clk 0:00:01]}  Bd3 {[%clk 0:00:05]} 41. Bf4 {[%clk 0:00:00]}  g5 {[%clk 0:00:04]} 0-1


[Site "https://www.chess.com"]

[Event "Titled Tuesday Blitz July 25 Early 2023"]
[White "Tikhonov, Viacheslav"]
[Black "Fernandez Siles, Luis"]
[WhiteFideId "44196407"]
[BlackFideId "2209420"]
[WhiteElo "2474"]
[BlackElo "2307"]
[Result "1-0"]
[Round "8"]
[TimeControl "180+2"]
[Date "2023.07.25"]
[WhiteClock "0:00:31"]
[BlackClock "0:00:00"]
[Board "158"]

1. d4 {[%clk 0:02:59]}  Nf6 {[%clk 0:02:59]} 2. Bf4 {[%clk 0:03:00]}  g6 {[%clk 0:02:53]} 3. e3 {[%clk 0:03:00]}  Bg7 {[%clk 0:02:53]} 4. Nf3 {[%clk 0:03:00]}  O-O {[%clk 0:02:53]} 5. Be2 {[%clk 0:03:00]}  d6 {[%clk 0:02:52]} 6. O-O {[%clk 0:03:00]}  c5 {[%clk 0:02:52]} 7. c3 {[%clk 0:02:56]}  Be6 {[%clk 0:02:48]} 8. h3 {[%clk 0:02:52]}  Nc6 {[%clk 0:02:46]} 9. Nbd2 {[%clk 0:02:44]}  Qb6 {[%clk 0:02:45]} 10. b3 {[%clk 0:02:23]}  Nd5 {[%clk 0:02:34]} 11. Nc4 {[%clk 0:02:09]}  Qd8 {[%clk 0:02:25]} 12. Rc1 {[%clk 0:02:00]}  Nxf4 {[%clk 0:02:20]} 13. exf4 {[%clk 0:02:01]}  cxd4 {[%clk 0:02:16]} 14. cxd4 {[%clk 0:02:02]}  Bd5 {[%clk 0:02:05]} 15. Ne3 {[%clk 0:01:59]}  Qa5 {[%clk 0:01:52]} 16. Nxd5 {[%clk 0:01:45]}  Qxd5 {[%clk 0:01:53]} 17. Bc4 {[%clk 0:01:41]}  Qe4 {[%clk 0:01:52]} 18. Re1 {[%clk 0:01:36]}  Qxf4 {[%clk 0:01:51]} 19. Bd5 {[%clk 0:01:33]}  Nxd4 {[%clk 0:01:44]} 20. Rxe7 {[%clk 0:01:31]}  Nxf3+ {[%clk 0:01:40]} 21. Bxf3 {[%clk 0:01:29]}  Rac8 {[%clk 0:01:15]} 22. Rxc8 {[%clk 0:01:26]}  Rxc8 {[%clk 0:01:16]} 23. g3 {[%clk 0:01:17]}  Qg5 {[%clk 0:01:15]} 24. Qe2 {[%clk 0:01:14]}  Be5 {[%clk 0:01:04]} 25. Rxb7 {[%clk 0:01:03]}  Bxg3 {[%clk 0:00:59]} 26. Bg4 {[%clk 0:00:46]}  Rc1+ {[%clk 0:00:42]} 27. Kg2 {[%clk 0:00:44]}  Be5 {[%clk 0:00:42]} 28. Qf3 {[%clk 0:00:35]}  f5 {[%clk 0:00:30]} 29. Rxa7 {[%clk 0:00:34]}  Qf4 {[%clk 0:00:00]} 30. Qa8+ {[%clk 0:00:31]} 1-0


[Site "https://www.chess.com"]

[Event "Titled Tuesday Blitz July 25 Early 2023"]
[White "Herman, Daniel"]
[Black "Putri, Regita Desyari"]
[WhiteFideId "30935008"]
[BlackFideId "7109083"]
[WhiteElo "2420"]
[BlackElo "2221"]
[Result "0-1"]
[Round "8"]
[TimeControl "180+2"]
[Date "2023.07.25"]
[WhiteClock "0:00:00"]
[BlackClock "0:00:05"]
[Board "161"]

1. Nf3 {[%clk 0:03:00]}  d5 {[%clk 0:02:58]} 2. e3 {[%clk 0:02:59]}  Nf6 {[%clk 0:02:57]} 3. c4 {[%clk 0:02:59]}  e6 {[%clk 0:02:51]} 4. Nc3 {[%clk 0:02:58]}  Bb4 {[%clk 0:02:48]} 5. Qc2 {[%clk 0:02:53]}  O-O {[%clk 0:02:45]} 6. a3 {[%clk 0:02:51]}  Bxc3 {[%clk 0:02:44]} 7. Qxc3 {[%clk 0:02:51]}  b6 {[%clk 0:02:40]} 8. b4 {[%clk 0:02:37]}  dxc4 {[%clk 0:02:37]} 9. Bxc4 {[%clk 0:02:34]}  Ne4 {[%clk 0:02:27]} 10. Qc2 {[%clk 0:02:29]}  Bb7 {[%clk 0:02:27]} 11. Bb2 {[%clk 0:02:24]}  Nd7 {[%clk 0:02:23]} 12. O-O {[%clk 0:02:12]}  c5 {[%clk 0:02:22]} 13. b5 {[%clk 0:02:09]}  Ndf6 {[%clk 0:02:16]} 14. Ne5 {[%clk 0:02:02]}  Qe7 {[%clk 0:02:05]} 15. Bd3 {[%clk 0:01:04]}  Rfd8 {[%clk 0:01:46]} 16. Nc6 {[%clk 0:01:00]}  Bxc6 {[%clk 0:01:46]} 17. bxc6 {[%clk 0:01:01]}  Nxd2 {[%clk 0:01:34]} 18. Bxf6 {[%clk 0:00:34]}  Qxf6 {[%clk 0:01:32]} 19. Rfd1 {[%clk 0:00:26]}  c4 {[%clk 0:01:19]} 20. Bxh7+ {[%clk 0:00:25]}  Kh8 {[%clk 0:01:20]} 21. c7 {[%clk 0:00:25]}  Rd5 {[%clk 0:01:04]} 22. Rac1 {[%clk 0:00:17]}  Nb3 {[%clk 0:00:51]} 23. Be4 {[%clk 0:00:16]}  Nxc1 {[%clk 0:00:43]} 24. Rxc1 {[%clk 0:00:17]}  Rc8 {[%clk 0:00:42]} 25. Qxc4 {[%clk 0:00:16]}  Rc5 {[%clk 0:00:41]} 26. Qf1 {[%clk 0:00:15]}  R8xc7 {[%clk 0:00:39]} 27. Rd1 {[%clk 0:00:14]}  g6 {[%clk 0:00:38]} 28. g3 {[%clk 0:00:14]}  Kg7 {[%clk 0:00:37]} 29. h4 {[%clk 0:00:14]}  Qb2 {[%clk 0:00:37]} 30. a4 {[%clk 0:00:12]}  Rc1 {[%clk 0:00:37]} 31. Kg2 {[%clk 0:00:11]}  R7c5 {[%clk 0:00:23]} 32. Rxc1 {[%clk 0:00:11]}  Qxc1 {[%clk 0:00:23]} 33. Qd3 {[%clk 0:00:10]}  Qc3 {[%clk 0:00:19]} 34. Qd7 {[%clk 0:00:10]}  Rc7 {[%clk 0:00:20]} 35. Qe8 {[%clk 0:00:10]}  Qf6 {[%clk 0:00:13]} 36. Bf3 {[%clk 0:00:09]}  Rc5 {[%clk 0:00:12]} 37. Qd7 {[%clk 0:00:09]}  a5 {[%clk 0:00:08]} 38. Bc6 {[%clk 0:00:08]}  e5 {[%clk 0:00:07]} 39. Bb5 {[%clk 0:00:08]}  e4 {[%clk 0:00:06]} 40. Qd4 {[%clk 0:00:06]}  Qxd4 {[%clk 0:00:06]} 41. exd4 {[%clk 0:00:06]}  Rd5 {[%clk 0:00:07]} 42. Kf1 {[%clk 0:00:06]}  Rxd4 {[%clk 0:00:08]} 43. Ke2 {[%clk 0:00:07]}  f5 {[%clk 0:00:07]} 44. Ke3 {[%clk 0:00:08]}  Rb4 {[%clk 0:00:08]} 45. Ke2 {[%clk 0:00:06]}  Kf6 {[%clk 0:00:09]} 46. Be8 {[%clk 0:00:06]}  Rb3 {[%clk 0:00:05]} 47. Kf1 {[%clk 0:00:06]}  e3 {[%clk 0:00:04]} 48. fxe3 {[%clk 0:00:05]}  Rxe3 {[%clk 0:00:05]} 49. Kg2 {[%clk 0:00:00]}  Rxe8 {[%clk 0:00:05]} 0-1


[Site "https://www.chess.com"]